[Event "MČR juniorů a juniorek v rapid šachu 2023"]
[Site "Czech Republic"]
[Date "2023.09.23"]
[Round "3.2"]
[White "Ocelak, Jakub"]
[Black "Novotny, Dominik"]
[Result "1/2-1/2"]
[TimeControl "20 min + 5 sec per move"]
[WhiteFideId "23707933"]
[BlackFideId "23755601"]
[WhiteElo "2025"]
[BlackElo "1707"]

1. d4 {[%clk 00:20:02]} {[%emt 00:00:06]} Nf6 {[%clk 00:20:09]} {[%emt
00:00:02]} 2. c4 {[%clk 00:20:05]} {[%emt 00:00:02]} e6 {[%clk 00:20:12]}
{[%emt 00:00:02]} 3. Nf3 {[%clk 00:19:58]} {[%emt 00:00:12]} b6 {[%clk
00:20:14]} {[%emt 00:00:04]} 4. g3 {[%clk 00:19:50]} {[%emt 00:00:12]} Bb7
{[%clk 00:20:16]} {[%emt 00:00:03]} 5. Bg2 {[%clk 00:19:54]} Be7 {[%clk
00:20:11]} {[%emt 00:00:10]} 6. O-O {[%clk 00:19:56]} {[%emt 00:00:02]} O-O
{[%clk 00:20:14]} {[%emt 00:00:03]} 7. Re1 {[%clk 00:19:59]} {[%emt 00:00:02]}
c5 {[%clk 00:19:42]} {[%emt 00:00:37]} 8. d5 {[%clk 00:19:58]} {[%emt
00:00:06]} exd5 {[%emt 00:01:08]} 9. Nh4 d6 {[%clk 00:18:45]} 10. Nc3 {[%clk
00:17:54]} {[%emt 00:02:13]} Nbd7 {[%clk 00:17:55]} {[%emt 00:00:55]} 11. Nf5
{[%clk 00:16:18]} {[%emt 00:01:41]} Re8 {[%clk 00:16:02]} {[%emt 00:01:58]} 12.
Nxe7+ {[%clk 00:14:54]} {[%emt 00:01:29]} Qxe7 {[%clk 00:15:45]} {[%emt
00:00:22]} 13. cxd5 {[%clk 00:14:06]} {[%emt 00:00:54]} a6 {[%clk 00:15:29]}
{[%emt 00:00:20]} 14. a4 {[%clk 00:14:06]} {[%emt 00:00:05]} Rac8 {[%clk
00:13:56]} {[%emt 00:01:38]} 15. b3 {[%clk 00:12:06]} {[%emt 00:02:05]} Ne5
{[%clk 00:09:57]} {[%emt 00:04:04]} 16. h3 {[%clk 00:11:16]} {[%emt 00:00:55]}
c4 {[%clk 00:07:50]} {[%emt 00:02:12]} 17. b4 {[%clk 00:11:13]} {[%emt
00:00:08]} Nd3 {[%clk 00:07:34]} {[%emt 00:00:21]} 18. Be3 {[%clk 00:08:43]}
{[%emt 00:02:35]} Nxe1 {[%clk 00:07:05]} {[%emt 00:00:34]} 19. Qxe1 {[%clk
00:08:47]} Nd7 {[%clk 00:05:46]} {[%emt 00:01:25]} 20. Bd4 {[%clk 00:08:35]}
{[%emt 00:00:16]} a5 {[%clk 00:05:09]} {[%emt 00:00:43]} 21. Rb1 {[%clk
00:08:04]} {[%emt 00:00:36]} Ra8 {[%clk 00:02:51]} {[%emt 00:02:23]} 22. Qd2
{[%clk 00:06:47]} {[%emt 00:01:22]} axb4 {[%clk 00:01:40]} {[%emt 00:01:16]} 23.
Rxb4 {[%clk 00:06:50]} Nc5 {[%clk 00:01:35]} {[%emt 00:00:10]} 24. Qb2 {[%clk
00:05:39]} {[%emt 00:01:17]} Ra6 {[%clk 00:00:36]} {[%emt 00:01:05]} 25. Rxc4
{[%clk 00:04:50]} {[%emt 00:00:53]} Rea8 {[%clk 00:00:40]} {[%emt 00:00:01]} 26.
Bf3 {[%clk 00:04:10]} {[%emt 00:00:45]} Nxa4 {[%clk 00:00:22]} {[%emt
00:00:23]} 27. Nxa4 {[%clk 00:04:14]} {[%emt 00:00:02]} Rxa4 {[%clk 00:00:27]}
28. Rxa4 {[%clk 00:04:14]} {[%emt 00:00:05]} Rxa4 {[%clk 00:00:31]} 29. Bxg7
{[%clk 00:04:12]} {[%emt 00:00:05]} f5 {[%clk 00:00:10]} {[%emt 00:00:26]} 30.
Bf6 {[%clk 00:02:59]} {[%emt 00:01:18]} Qc7 {[%clk 00:00:10]} {[%emt 00:00:05]}
31. Qd2 {[%clk 00:02:55]} {[%emt 00:00:09]} Qf7 {[%clk 00:00:06]} {[%emt
00:00:10]} 32. Bb2 {[%clk 00:01:42]} {[%emt 00:01:17]} Qg6 {[%clk 00:00:09]}
{[%emt 00:00:03]} 33. Qc3 {[%clk 00:01:36]} {[%emt 00:00:10]} f4 {[%clk
00:00:09]} {[%emt 00:00:05]} 34. Kg2 {[%clk 00:01:08]} {[%emt 00:00:33]} fxg3
{[%clk 00:00:12]} {[%emt 00:00:02]} 35. fxg3 {[%clk 00:01:11]} b5 {[%clk
00:00:12]} {[%emt 00:00:07]} 36. Qh8+ {[%clk 00:01:12]} Kf7 {[%clk 00:00:17]}
{[%emt 00:00:05]} 37. Qb8 {[%clk 00:01:13]} Ba6 {[%clk 00:00:09]} {[%emt
00:00:16]} 38. Qc7+ {[%clk 00:01:04]} Kg8 {[%clk 00:00:08]} {[%emt 00:00:21]}
39. Qd8+ {[%clk 00:01:02]} Kf7 {[%clk 00:00:11]} {[%emt 00:00:08]} 40. h4
{[%clk 00:00:36]} {[%emt 00:00:47]} Ra2 {[%clk 00:00:14]} {[%emt 00:00:06]} 41.
Qd7+ {[%clk 00:00:39]} {[%emt 00:00:02]} Kg8 {[%clk 00:00:18]} 42. Bd4 {[%clk
00:00:32]} {[%emt 00:00:12]} b4 {[%clk 00:00:14]} {[%emt 00:00:09]} 43. Qd8+
{[%clk 00:00:31]} {[%emt 00:00:06]} Kf7 {[%clk 00:00:17]} {[%emt 00:00:02]} 44.
Qd7+ {[%clk 00:00:35]} Kg8 {[%clk 00:00:21]} 45. h5 {[%clk 00:00:35]} Qf7
{[%clk 00:00:13]} {[%emt 00:00:39]} 46. Qd8+ {[%clk 00:00:19]} Qf8 {[%clk
00:00:17]} {[%emt 00:00:02]} 47. Qg5+ {[%clk 00:00:23]} Kf7 {[%clk 00:00:17]}
48. Kf1 {[%clk 00:00:23]} Ke8 {[%clk 00:00:17]} 49. Qe3+ {[%clk 00:00:23]}
1/2-1/2

[Event "MČR juniorů a juniorek v rapid šachu 2023"]
[Site "Czech Republic"]
[Date "2023.09.23"]
[Round "3.3"]
[White "Garabik, Marek"]
[Black "Hlavina, Matous"]
[Result "1/2-1/2"]
[TimeControl "20 min + 5 sec per move"]
[WhiteFideId "23717742"]
[BlackFideId "386650"]
[WhiteElo "1787"]
[BlackElo "2005"]

1. e4 {[%clk 00:20:08]} {[%emt 00:00:01]} e6 {[%clk 00:20:08]} {[%emt
00:00:03]} 2. d4 {[%clk 00:20:12]} d5 {[%clk 00:20:12]} 3. exd5 {[%clk
00:20:15]} {[%emt 00:00:02]} exd5 {[%clk 00:20:15]} {[%emt 00:00:01]} 4. Nc3
{[%clk 00:20:19]} {[%emt 00:00:02]} Nf6 {[%clk 00:20:18]} {[%emt 00:00:02]} 5.
Bg5 {[%clk 00:20:23]} {[%emt 00:00:02]} c6 {[%clk 00:20:18]} {[%emt 00:00:04]}
6. Bd3 {[%clk 00:20:26]} {[%emt 00:00:02]} Bd6 {[%clk 00:20:20]} {[%emt
00:00:03]} 7. Nge2 {[%clk 00:20:30]} b5 {[%clk 00:20:13]} {[%emt 00:00:12]} 8.
Qd2 {[%clk 00:20:23]} {[%emt 00:00:12]} O-O {[%clk 00:20:12]} {[%emt 00:00:06]}
9. O-O {[%clk 00:19:57]} {[%emt 00:00:31]} Re8 {[%clk 00:19:04]} {[%emt
00:01:14]} 10. Rae1 {[%clk 00:19:06]} {[%emt 00:00:55]} b4 {[%clk 00:18:44]}
{[%emt 00:00:25]} 11. Nd1 {[%clk 00:18:47]} {[%emt 00:00:23]} Ba6 {[%clk
00:17:39]} {[%emt 00:01:11]} 12. Ng3 {[%clk 00:17:46]} {[%emt 00:01:05]} Bxd3
{[%clk 00:16:55]} {[%emt 00:00:49]} 13. Qxd3 {[%clk 00:17:40]} {[%emt
00:00:12]} Nbd7 {[%clk 00:16:47]} {[%emt 00:00:12]} 14. Ne3 {[%clk 00:16:34]}
{[%emt 00:01:11]} h6 {[%clk 00:15:42]} {[%emt 00:01:10]} 15. Bxf6 {[%clk
00:15:52]} {[%emt 00:00:46]} Nxf6 {[%clk 00:15:13]} {[%emt 00:00:35]} 16. Nef5
{[%clk 00:15:22]} {[%emt 00:00:34]} Bf8 {[%clk 00:15:10]} {[%emt 00:00:09]} 17.
f3 {[%clk 00:13:58]} {[%emt 00:01:29]} Qd7 {[%clk 00:14:53]} {[%emt 00:00:21]}
18. Nh1 {[%clk 00:11:35]} {[%emt 00:02:29]} Nh5 {[%clk 00:10:10]} {[%emt
00:04:47]} 19. g4 {[%clk 00:09:50]} {[%emt 00:01:50]} Nf4 {[%clk 00:09:16]}
{[%emt 00:00:59]} 20. Qd2 {[%clk 00:08:34]} {[%emt 00:01:22]} Qc7 {[%clk
00:07:42]} {[%emt 00:01:40]} 21. Nf2 {[%clk 00:08:17]} {[%emt 00:00:21]} g6
{[%clk 00:07:39]} {[%emt 00:00:09]} 22. Ng3 {[%clk 00:07:56]} {[%emt 00:00:25]}
Bd6 {[%clk 00:07:16]} {[%emt 00:00:28]} 23. Kh1 {[%clk 00:06:57]} {[%emt
00:01:03]} a5 {[%clk 00:07:05]} {[%emt 00:00:17]} 24. Rg1 {[%clk 00:04:18]}
{[%emt 00:02:44]} Kh7 {[%clk 00:07:03]} {[%emt 00:00:07]} 25. Rxe8 {[%clk
00:03:30]} {[%emt 00:00:53]} Rxe8 {[%clk 00:07:04]} {[%emt 00:00:03]} 26. Nd3
{[%clk 00:03:25]} {[%emt 00:00:11]} Nh3 {[%clk 00:05:28]} {[%emt 00:01:42]} 27.
Re1 {[%clk 00:01:59]} {[%emt 00:01:30]} Bf4 {[%clk 00:03:32]} {[%emt 00:02:02]}
28. Nxf4 {[%clk 00:01:37]} {[%emt 00:00:26]} Rxe1+ {[%clk 00:03:25]} {[%emt
00:00:12]} 29. Qxe1 {[%clk 00:01:20]} {[%emt 00:00:22]} Qxf4 {[%clk 00:03:25]}
{[%emt 00:00:05]} 30. Kg2 {[%clk 00:00:57]} {[%emt 00:00:28]} Ng5 {[%clk
00:03:28]} {[%emt 00:00:02]} 31. Qf2 {[%clk 00:00:57]} {[%emt 00:00:04]} Qc1
{[%clk 00:03:06]} {[%emt 00:00:27]} 32. b3 {[%clk 00:00:35]} {[%emt 00:00:28]}
Ne6 {[%clk 00:03:09]} {[%emt 00:00:02]} 33. Ne2 {[%clk 00:00:24]} {[%emt
00:00:15]} Qxc2 {[%clk 00:03:09]} {[%emt 00:00:06]} 34. h4 {[%clk 00:00:19]}
{[%emt 00:00:10]} Qxe2 {[%clk 00:02:46]} {[%emt 00:00:28]} 35. Qxe2 {[%clk
00:00:22]} {[%emt 00:00:02]} Nf4+ {[%clk 00:02:50]} 36. Kf2 {[%clk 00:00:26]}
{[%emt 00:00:02]} Nxe2 {[%clk 00:02:54]} {[%emt 00:00:02]} 37. Kxe2 {[%clk
00:00:29]} {[%emt 00:00:02]} Kg7 {[%clk 00:02:57]} {[%emt 00:00:02]} 38. Ke3
{[%clk 00:00:33]} Kf6 {[%clk 00:03:00]} {[%emt 00:00:01]} 39. Kd3 {[%clk
00:00:19]} {[%emt 00:00:19]} Ke6 {[%clk 00:03:04]} {[%emt 00:00:02]} 40. Ke3
{[%clk 00:00:22]} {[%emt 00:00:01]} Kd6 {[%clk 00:03:08]} {[%emt 00:00:02]} 41.
f4 {[%clk 00:00:24]} {[%emt 00:00:03]} c5 {[%clk 00:03:10]} {[%emt 00:00:04]}
42. dxc5+ {[%clk 00:00:26]} {[%emt 00:00:02]} Kxc5 {[%clk 00:03:14]} {[%emt
00:00:02]} 43. Kd3 {[%clk 00:00:18]} {[%emt 00:00:13]} d4 {[%clk 00:02:34]}
{[%emt 00:00:44]} 44. Ke4 {[%clk 00:00:08]} {[%emt 00:00:15]} f5+ {[%clk
00:02:27]} {[%emt 00:00:11]} 45. gxf5 {[%clk 00:00:12]} {[%emt 00:00:02]} gxf5+
{[%clk 00:02:32]} 46. Kd3 {[%clk 00:00:16]} Kd5 {[%clk 00:02:04]} {[%emt
00:00:32]} 47. h5 {[%clk 00:00:19]} Kc5 {[%clk 00:02:08]} {[%emt 00:00:02]} 48.
Kd2 {[%clk 00:00:22]} {[%emt 00:00:02]} Kd6 {[%clk 00:01:44]} {[%emt 00:00:28]}
49. Kc2 {[%clk 00:00:25]} {[%emt 00:00:02]} Kc6 {[%clk 00:01:44]} {[%emt
00:00:06]} 50. Kd2 {[%clk 00:00:27]} {[%emt 00:00:03]} Kb5 {[%clk 00:01:44]}
{[%emt 00:00:05]} 51. Kd3 {[%clk 00:00:27]} {[%emt 00:00:04]} Kc5 {[%clk
00:01:48]} {[%emt 00:00:01]} 52. Kc2 {[%clk 00:00:31]} {[%emt 00:00:02]} Kd5
{[%clk 00:01:49]} {[%emt 00:00:04]} 53. Kd3 {[%clk 00:00:34]} {[%emt 00:00:01]}
Kc5 {[%clk 00:01:52]} {[%emt 00:00:03]} 54. Kc2 {[%clk 00:00:37]} {[%emt
00:00:02]} Kd6 {[%clk 00:01:55]} {[%emt 00:00:01]} 55. Kd2 {[%clk 00:00:41]}
{[%emt 00:00:02]} Kd5 {[%clk 00:01:59]} 1/2-1/2

[Event "MČR juniorů a juniorek v rapid šachu 2023"]
[Site "Czech Republic"]
[Date "2023.09.23"]
[Round "3.4"]
[White "Dolensky, Filip"]
[Black "Hosova, Sandra"]
[Result "1-0"]
[TimeControl "20 min + 5 sec per move"]
[WhiteFideId "399000"]
[BlackFideId "397717"]
[WhiteElo "1942"]
[BlackElo "1682"]

1. e4 {[%clk 00:20:09]} d5 {[%clk 00:20:09]} {[%emt 00:00:02]} 2. exd5 {[%clk
00:20:09]} {[%emt 00:00:04]} Qxd5 {[%clk 00:20:13]} {[%emt 00:00:01]} 3. Nc3
{[%clk 00:20:13]} {[%emt 00:00:02]} Qd6 {[%clk 00:20:17]} 4. d3 {[%clk
00:19:47]} {[%emt 00:00:31]} Nf6 {[%clk 00:20:19]} {[%emt 00:00:03]} 5. Nge2
{[%clk 00:19:43]} {[%emt 00:00:09]} Bg4 {[%clk 00:20:11]} {[%emt 00:00:13]} 6.
Be3 {[%clk 00:19:30]} {[%emt 00:00:17]} e6 {[%clk 00:19:33]} {[%emt 00:00:44]}
7. h3 {[%clk 00:19:26]} {[%emt 00:00:08]} Bh5 {[%clk 00:19:30]} {[%emt
00:00:08]} 8. Qd2 {[%clk 00:19:11]} {[%emt 00:00:20]} c6 {[%clk 00:19:07]}
{[%emt 00:00:28]} 9. g4 {[%clk 00:17:33]} {[%emt 00:01:43]} Bg6 {[%clk
00:19:07]} {[%emt 00:00:05]} 10. Bg2 {[%clk 00:17:36]} {[%emt 00:00:02]} Qc7
{[%clk 00:18:40]} {[%emt 00:00:32]} 11. O-O {[%clk 00:17:12]} {[%emt 00:00:29]}
Bd6 {[%clk 00:17:10]} {[%emt 00:01:36]} 12. Bf4 {[%clk 00:16:41]} {[%emt
00:00:36]} e5 {[%clk 00:16:00]} {[%emt 00:01:16]} 13. Be3 {[%clk 00:16:17]}
{[%emt 00:00:28]} Nbd7 {[%clk 00:15:33]} {[%emt 00:00:33]} 14. Ng3 {[%clk
00:16:12]} {[%emt 00:00:08]} O-O {[%clk 00:12:43]} {[%emt 00:02:55]} 15. Rae1
{[%clk 00:15:40]} {[%emt 00:00:36]} Rad8 {[%clk 00:11:59]} {[%emt 00:00:50]} 16.
Qe2 {[%clk 00:14:45]} {[%emt 00:01:00]} Nb6 {[%clk 00:11:06]} {[%emt 00:00:59]}
17. Nce4 {[%clk 00:14:28]} {[%emt 00:00:22]} Be7 {[%clk 00:10:32]} {[%emt
00:00:39]} 18. Nxf6+ {[%clk 00:13:42]} {[%emt 00:00:50]} Bxf6 {[%clk 00:10:34]}
{[%emt 00:00:03]} 19. Ne4 {[%clk 00:11:13]} {[%emt 00:02:34]} Be7 {[%clk
00:10:33]} {[%emt 00:00:06]} 20. Ng3 {[%clk 00:10:48]} {[%emt 00:00:30]} Nd5
{[%clk 00:09:05]} {[%emt 00:01:34]} 21. Bc1 {[%clk 00:09:31]} {[%emt 00:01:22]}
f6 {[%clk 00:08:44]} {[%emt 00:00:25]} 22. Be4 {[%clk 00:09:19]} {[%emt
00:00:17]} Bxe4 {[%clk 00:07:54]} {[%emt 00:00:56]} 23. dxe4 {[%clk 00:07:59]}
{[%emt 00:01:25]} Nf4 {[%clk 00:07:02]} {[%emt 00:00:56]} 24. Bxf4 {[%clk
00:08:01]} {[%emt 00:00:03]} exf4 {[%clk 00:07:06]} {[%emt 00:00:02]} 25. Nf5
{[%clk 00:08:05]} Rfe8 {[%clk 00:06:31]} {[%emt 00:00:40]} 26. Qc4+ {[%clk
00:08:04]} {[%emt 00:00:06]} Kh8 {[%clk 00:06:02]} {[%emt 00:00:34]} 27. Nd4
{[%clk 00:04:52]} {[%emt 00:03:17]} Qe5 {[%clk 00:05:06]} {[%emt 00:01:01]} 28.
c3 {[%clk 00:04:43]} {[%emt 00:00:14]} Bd6 {[%clk 00:04:00]} {[%emt 00:01:11]}
29. Nf3 {[%clk 00:04:07]} {[%emt 00:00:40]} Qe7 {[%clk 00:03:48]} {[%emt
00:00:18]} 30. Re2 {[%clk 00:03:34]} {[%emt 00:00:37]} Bb8 {[%clk 00:03:34]}
{[%emt 00:00:20]} 31. Rfe1 {[%clk 00:03:25]} {[%emt 00:00:14]} Rd7 {[%clk
00:02:41]} {[%emt 00:00:58]} 32. e5 {[%clk 00:02:50]} {[%emt 00:00:40]} fxe5
{[%clk 00:02:28]} {[%emt 00:00:18]} 33. Nxe5 {[%clk 00:02:35]} {[%emt
00:00:19]} Bxe5 {[%clk 00:02:07]} {[%emt 00:00:26]} 34. Rxe5 {[%clk 00:02:35]}
{[%emt 00:00:06]} Qxe5 {[%clk 00:01:49]} {[%emt 00:00:23]} 35. Rxe5 {[%clk
00:02:39]} Rxe5 {[%clk 00:01:53]} {[%emt 00:00:02]} 36. Qxf4 {[%clk 00:02:40]}
{[%emt 00:00:03]} Re8 {[%clk 00:01:50]} {[%emt 00:00:08]} 37. h4 {[%clk
00:02:35]} {[%emt 00:00:10]} Kg8 {[%clk 00:00:52]} {[%emt 00:01:03]} 38. Qc4+
{[%clk 00:02:06]} {[%emt 00:00:35]} Kh8 {[%clk 00:00:24]} {[%emt 00:00:34]} 39.
Qc5 {[%clk 00:01:51]} {[%emt 00:00:17]} a6 {[%clk 00:00:26]} {[%emt 00:00:05]}
40. Kg2 {[%clk 00:01:42]} {[%emt 00:00:14]} Rde7 {[%clk 00:00:24]} {[%emt
00:00:07]} 41. Kg3 {[%clk 00:01:18]} {[%emt 00:00:28]} h6 {[%clk 00:00:27]}
{[%emt 00:00:02]} 42. b4 {[%clk 00:00:48]} {[%emt 00:00:36]} Re2 {[%clk
00:00:27]} {[%emt 00:00:04]} 43. a4 {[%clk 00:00:45]} {[%emt 00:00:09]} Ra2
{[%clk 00:00:16]} {[%emt 00:00:16]} 44. g5 {[%clk 00:00:37]} {[%emt 00:00:13]}
Ree2 {[%clk 00:00:10]} {[%emt 00:00:11]} 45. Qf8+ {[%clk 00:00:20]} {[%emt
00:00:22]} Kh7 {[%clk 00:00:13]} {[%emt 00:00:03]} 46. Qf5+ {[%clk 00:00:18]}
{[%emt 00:00:06]} Kg8 {[%clk 00:00:13]} {[%emt 00:00:04]} 47. Qc8+ {[%clk
00:00:11]} {[%emt 00:00:12]} Kh7 {[%clk 00:00:16]} {[%emt 00:00:02]} 48. gxh6
{[%clk 00:00:13]} {[%emt 00:00:03]} Kxh6 {[%clk 00:00:18]} {[%emt 00:00:03]} 49.
Qxb7 {[%clk 00:00:13]} {[%emt 00:00:06]} Rxf2 {[%clk 00:00:21]} {[%emt
00:00:02]} 50. Qxc6+ {[%clk 00:00:16]} Kh7 {[%clk 00:00:21]} {[%emt 00:00:05]}
51. Qe4+ {[%clk 00:00:18]} {[%emt 00:00:03]} Kh8 {[%clk 00:00:24]} {[%emt
00:00:02]} 52. b5 {[%clk 00:00:14]} {[%emt 00:00:09]} axb5 {[%clk 00:00:25]}
{[%emt 00:00:05]} 53. axb5 Rfb2 {[%clk 00:00:16]} {[%emt 00:00:13]} 54. Qe8+
{[%clk 00:00:21]} {[%emt 00:00:03]} Kh7 {[%clk 00:00:20]} {[%emt 00:00:02]} 55.
Qh5+ {[%clk 00:00:24]} {[%emt 00:00:01]} Kg8 {[%clk 00:00:24]} {[%emt
00:00:02]} 56. Qe8+ {[%clk 00:00:25]} {[%emt 00:00:03]} Kh7 {[%clk 00:00:28]}
{[%emt 00:00:02]} 57. Qe4+ {[%clk 00:00:25]} {[%emt 00:00:02]} Kg8 {[%clk
00:00:28]} {[%emt 00:00:08]} 58. c4 {[%clk 00:00:27]} {[%emt 00:00:02]} Ra3+
{[%clk 00:00:25]} {[%emt 00:00:08]} 59. Kf4 {[%clk 00:00:28]} {[%emt 00:00:04]}
Ra4 {[%clk 00:00:09]} {[%emt 00:00:22]} 60. Ke5 {[%clk 00:00:21]} {[%emt
00:00:11]} Rbb4 {[%clk 00:00:08]} {[%emt 00:00:07]} 61. Kd5 {[%clk 00:00:23]}
{[%emt 00:00:02]} Ra2 {[%clk 00:00:11]} {[%emt 00:00:02]} 62. Kc5 {[%clk
00:00:26]} {[%emt 00:00:03]} Rbb2 {[%clk 00:00:12]} {[%emt 00:00:04]} 63. Qe6+
{[%clk 00:00:23]} {[%emt 00:00:06]} Kh8 {[%clk 00:00:15]} {[%emt 00:00:03]} 64.
b6 {[%clk 00:00:21]} {[%emt 00:00:08]} Ra5+ {[%clk 00:00:14]} {[%emt 00:00:07]}
65. Kc6 {[%clk 00:00:23]} {[%emt 00:00:01]} Ra6 {[%clk 00:00:09]} {[%emt
00:00:10]} 66. c5 {[%clk 00:00:27]} Rc2 {[%clk 00:00:09]} {[%emt 00:00:05]} 67.
Qc8+ {[%clk 00:00:31]} 1-0